Cogmind - Beta 12 @@@ ROGUE MODE // 2023.03.04 @ 06:29:05 // Winter2019/RPGLIKE Player: ArabianSandBoa Result: Destroyed by DAS Turret with DAS Cannon Performance ------------- Evolutions (1) 500 Regions Visited (5) 1000 Robots Destroyed (87) 435 Value Destroyed (2422) 2422 Prototype IDs (13) 260 Alien Tech Used (0) 0 Bonus (825) 825 TOTAL SCORE: 5442 Bonus ------- High Alert Combat Kills 525 Aligned with FarCom 300 Cogmind --------- Core Integrity 0/600 Matter 285/300 Energy 309/310 System Corruption 4% Temperature Cool (0) Movement Core (800) Ox15 Location -9/Exiles Parts ------- > --- POWER (1) -------- Reinforced Fission Core > --- PROPULSION (1) --- (None) > --- UTILITY (5) ------ Experimental Heat Sink Experimental Sensor Array Targeting Computer > --- WEAPON (4) ------- Latent Energy Streamer 8R-AWN's Boregun 8R-AWN's Boregun Longsword +1 > --- INVENTORY (4) ---- Advanced Myomer Leg Potential Leg Potential Leg Sensor Drone Bay (20/20) Peak State ------------ > --- POWER ------------ Reinforced Fission Core > --- PROPULSION ------- Compact Wheel > --- UTILITY ---------- Experimental Heat Sink Experimental Sensor Array Targeting Computer Experimental Targeting Computer > --- WEAPON ----------- Latent Energy Streamer 8R-AWN's Boregun 8R-AWN's Boregun Longsword +1 > --- INVENTORY -------- Advanced Myomer Leg Potential Leg Potential Leg Sensor Drone Bay [Rating: 71] Favorites ----------- Power Light Nuclear Core Engine Ion Engine Power Core Light Nuclear Core Propulsion Compact Wheel Leg Advanced Myomer Leg Wheel Compact Wheel Flight Unit Improved Flight Unit Utility Targeting Computer Device Sensor Array Processor Targeting Computer Weapon Pulse Rifle Energy Gun Pulse Rifle Energy Cannon Light EM Pulse Cannon Ballistic Gun 8R-AWN's Boregun Slashing Weapon Longsword +1 Build | -11 -10 -10 -9 -9 -9 ------- Run | Jun Mat Min Mat Min Exi Slots Evolved 7 | 3 1 1 2 . . Power . | . . . . . . Propulsion . | . . . . . . Utility 4 | 2 . . 2 . . Weapon 3 | 1 1 1 . . . Parts Attached 33 | 2 8 . 12 . 11 Power 2 | . 1 . . . 1 Engine . | . . . . . . Core 2 | . 1 . . . 1 Reactor . | . . . . . . Propulsion 7 | 1 1 . 2 . 3 Treads . | . . . . . . Leg 2 | . . . . . 2 Wheel 4 | 1 1 . 1 . 1 Hover . | . . . . . . Flight 1 | . . . 1 . . Utility 11 | . 3 . 6 . 2 Device 9 | . 2 . 6 . 1 Storage . | . . . . . . Processor 2 | . 1 . . . 1 Hackware . | . . . . . . Protection . | . . . . . . Artifact . | . . . . . . Weapon 13 | 1 3 . 4 . 5 Energy Gun 5 | 1 . . 4 . . Energy Cannon 5 | . 3 . . . 2 Ballistic Gun 2 | . . . . . 2 Ballistic Cannon . | . . . . . . Launcher . | . . . . . . Special Weapon . | . . . . . . Impact Weapon . | . . . . . . Slashing Weapon 1 | . . . . . 1 Piercing Weapon . | . . . . . . Special Melee Weapon . | . . . . . . Unidentified Prototypes 10 | . . . 3 . 7 Parts Lost 2 | . . . . . 2 Power . | . . . . . . Propulsion 1 | . . . . . 1 Utility 1 | . . . . . 1 Weapon . | . . . . . . Highest Loss Streak 1 | . . . . . 1 To Critical Strikes 1 | . . . . . 1 Average Slot Usage (%) 83 | . 88 77 85 81 76 Core 11 | . 13 11 10 9 9 Wheel 11 | . 14 11 9 9 8 Device 17 | . 18 22 15 18 12 Processor 11 | . 13 11 10 9 9 Energy Gun 13 | . 1 . 34 36 12 Energy Cannon 15 | . 25 22 4 . 6 Ballistic Gun 2 | . 1 . . . 9 Slashing Weapon 1 | . . . . . 6 Naked Turns . | . . . . . . Heaviest Build 47 | 9 15 15 28 23 47 Greatest Support 30 | 16 16 16 16 16 30 Greatest Overweight (x) 6 | 2 . . 6 1 2 Average Overweight (x) . | . . . . 1 1 Largest Inventory Capacity 4 | 2 2 4 4 4 4 Average Capacity 3 | 1 2 4 4 4 4 Most Carried 4 | 1 2 4 4 4 4 Average Carried 2 | . 1 2 3 4 3 Final Capacity 4 | 2 4 4 4 4 4 Final Carried 4 | . 2 4 4 4 4 Class Distribution -------------------- 71% | Mutant 28% | Gunner Dominant Class ---------------- Mutant | -10/Materials Mutant | -10/Mines Gunner | -9/Materials Gunner | -9/Mines Mutant | -9/Exiles Resources | -11 -10 -10 -9 -9 -9 ----------- Run | Jun Mat Min Mat Min Exi Matter Collected 560 | 200 130 . 117 . 113 Remotely . | . . . . . . Salvage Created 2578 | . 1046 370 920 . 242 Parts 167 | . 62 24 78 . 3 Haulers Intercepted 8 | . 2 . 6 . . Recyclers Shooed . | . . . . . . Parts Field Recycled . | . . . . . . Retrieved Matter . | . . . . . . Parts Self-Destructed . | . . . . . . Prevented . | . . . . . . Kills | -11 -10 -10 -9 -9 -9 ------- Run | Jun Mat Min Mat Min Exi Combat Hostiles Destroyed 61 | . 21 10 22 . 8 Melee 1 | . . . . . 1 Guns 22 | . 2 . 17 . 3 Cannons 26 | . 15 8 3 . . AOE 10 | . 4 . 2 . 4 Classes Destroyed 12 | . 8 . 3 . 1 Worker 6 | . 2 . 4 . . Builder 11 | . 4 1 6 . . Hauler 8 | . 2 . 6 . . Recycler 1 | . 1 . . . . Operator 1 | . 1 . . . . Watcher 6 | . 3 . 3 . . Swarmer 13 | . 3 6 4 . . Grunt 33 | . 18 4 11 . . Duelist 2 | . . . 2 . . Protector 1 | . . . 1 . . Sentry 4 | . . . 4 . . Assembled 7 | . . . . . 7 Best Kill Streak 7 | . 6 3 7 . 7 Combat Bots Only 7 | . 5 3 5 . 7 Max Kills in Single Turn 2 | . 2 1 2 . 2 Gunslinging 1 | . . . 1 . . Exploded 2 | . 2 . 1 . 2 Melee 1 | . . . . . 1 Uniques/NPCs Destroyed 1 | . . . . . 1 8R-AWN (-9/Exiles) Combat | -11 -10 -10 -9 -9 -9 -------- Run | Jun Mat Min Mat Min Exi Damage Taken 2679 | . 790 243 441 . 1205 Core 2187 | . 667 200 359 . 961 Absorbed by Shields 33 | . . . . . 33 Redirected to Core 1655 | . 417 128 277 . 833 Core Remaining (%) 94 | 100 . 88 . . . Volleys Fired 192 | . 85 24 77 . 6 Largest 4 | . 2 2 4 . 4 Hottest 252 | . 112 112 252 . 252 Shots Fired 517 | . 170 48 286 . 13 Gun 295 | . 20 . 264 . 11 Cannon 222 | . 150 48 22 . 2 Launcher . | . . . . . . Special . | . . . . . . Kinetic 10 | . 10 . . . . Thermal 285 | . 10 . 264 . 11 Explosive . | . . . . . . Electromagnetic 222 | . 150 48 22 . 2 Robot Hit Streak 23 | . 13 15 23 . 9 Robot Miss Streak 2 | . 2 2 2 . . Penetration Max . | . . . . . . Secondary Targets 3 | . 1 . 1 . 1 Max Gunslinging Chain 1 | . 1 . 1 . 1 Shots Hit Robots 223 | . 68 25 92 . 38 Core Hits 104 | . 34 11 43 . 16 Critical Kills . | . . . . . . Critical Parts Destroyed . | . . . . . . Critical Strikes 13 | . 2 3 5 . 3 Burn 5 | . . . 5 . . Corrupt 5 | . 2 3 . . . Sever 3 | . . . . . 3 Melee Attacks 32 | . . . . . 32 Impact . | . . . . . . Slashing 32 | . . . . . 32 Piercing . | . . . . . . Sneak Attacks . | . . . . . . Combat Hostiles . | . . . . . . Follow-up Attacks . | . . . . . . Damage Inflicted 6955 | . 2199 718 2386 . 1652 Guns 1971 | . 186 . 1682 . 103 Cannons 2196 | . 1326 569 287 . 14 Explosions 1499 | . 687 149 413 . 250 Melee 1285 | . . . . . 1285 Ramming 4 | . . . 4 . . Kinetic 101 | . 101 . . . . Thermal 2925 | . 618 149 2055 . 103 Explosive 194 | . 154 . 40 . . Electromagnetic 2446 | . 1326 569 287 . 264 Impact . | . . . . . . Slashing 1285 | . . . . . 1285 Piercing . | . . . . . . Highest Corruption 4 | . . . . . 4 Average Corruption 3 | . . . . . 3 Corruption Purged . | . . . . . . Corruption Blocked . | . . . . . . Effects 10 | . . . . . 10 Message Errors 3 | . . . . . 3 Matter Fused 3 | . . . . . 3 Heat Flow Errors 2 | . . . . . 2 Energy Discharges 1 | . . . . . 1 Misfires 1 | . . . . . 1 Overload Shots . | . . . . . . Overflow Damage 311 | . 139 5 167 . . Projectiles 76 | . 64 5 7 . . Explosions 235 | . 75 . 160 . . Melee . | . . . . . . Knockbacks . | . . . . . . Impact . | . . . . . . Kinetic . | . . . . . . Secondary . | . . . . . . Self-Inflicted Damage 253 | . 168 21 64 . . Shots 6 | . 4 1 1 . . Rammed 1 | . . . 1 . . Targets Rammed 1 | . . . 1 . . Kicked . | . . . . . . Crushed . | . . . . . . Highest Temperature 528 | . 219 75 528 . 94 Average Temperature 75 | . 65 28 96 . 57 Received Heat Transfer 549 | . 324 75 150 . . Effects 8 | . . . 8 . . Shutdowns 1 | . . . 1 . . Energy Bleed 2 | . . . 2 . . Interference 3 | . . . 3 . . Damage (major) 2 | . . . 2 . . Siege Activations . | . . . . . . Robots Corrupted 3 | . 1 2 . . . Combat Hostiles 2 | . . 2 . . . Parts Fried 10 | . 8 1 1 . . Impact Corruptions . | . . . . . . Robots Melted . | . . . . . . Combat Hostiles . | . . . . . . Parts Melted 15 | . 3 . 12 . . Heat Transferred 4885 | . 909 150 3632 . 194 Parts Sabotaged . | . . . . . . Parts Stolen . | . . . . . . Parts Stripped . | . . . . . . Power Chain Reactions 8 | . 6 2 . . . Missiles Intercepted . | . . . . . . Latent Energy Used 176 | . . . . . 176 LE Corruption 4 | . . . . . 4 Alert | -11 -10 -10 -9 -9 -9 ------- Run | Jun Mat Min Mat Min Exi Peak Influence 1224 | . 1054 623 1224 477 . Initial 477 | . . 396 226 477 . Average 574 | . 500 518 721 477 . Maximum Alert Level 4 | . 3 2 4 2 . Low Security (%) 9 | 100 20 . . . . Level 1 14 | . 23 . 13 . . Level 2 49 | . 25 100 42 100 . Level 3 21 | . 30 . 26 . . Level 4 5 | . . . 17 . . Level 5 . | . . . . . . High Security . | . . . . . . Max Security . | . . . . . . Squads Dispatched 11 | . 6 . 5 . . Investigation 8 | . 6 . 2 . . Extermination . | . . . . . . Reinforcement 2 | . . . 2 . . Assault 1 | . . . 1 . . Garrison . | . . . . . . Intercept . | . . . . . . Searches Triggered . | . . . . . . Construction Impeded . | . . . . . . Haulers Reinforced . | . . . . . . Active Scanning Responses . | . . . . . . Cargo Convoy Interrupts . | . . . . . . Stealth | -11 -10 -10 -9 -9 -9 --------- Run | Jun Mat Min Mat Min Exi Distress Signals 3 | . . . 3 . . Communications Jammed . | . . . . . . Distress Signals . | . . . . . . Times Spotted 68 | . 28 9 26 . 5 Peak Tracking Total 9 | . 3 3 5 . 9 Tactical Retreats 5 | . 2 . 1 . 2 Traps | -11 -10 -10 -9 -9 -9 ------- Run | Jun Mat Min Mat Min Exi Traps Triggered 2 | . 2 . . . . Indirectly . | . . . . . . Trap Hack Attempts . | . . . . . . Triggered . | . . . . . . Disarmed . | . . . . . . Reprogrammed . | . . . . . . Reused . | . . . . . . Traps Extracted . | . . . . . . Installed . | . . . . . . Triggered . | . . . . . . Machines | -11 -10 -10 -9 -9 -9 ---------- Run | Jun Mat Min Mat Min Exi Machines Disabled 63 | . 33 8 21 . 1 Max in Single Turn 3 | . 3 2 3 . 1 Machines Repaired . | . . . . . . Machines Sabotaged . | . . . . . . Overloaded Fab Kills . | . . . . . . Hacking | -11 -10 -10 -9 -9 -9 --------- Run | Jun Mat Min Mat Min Exi Machines Accessed 10 | . 7 1 2 . . Terminals 7 | . 6 . 1 . . Fabricators . | . . . . . . Repair Stations . | . . . . . . Recycling Units 1 | . 1 . . . . Scanalyzers 1 | . . . 1 . . Garrison Access . | . . . . . . Total Hacks 40 | . 31 1 8 . . Successful 24 | . 18 1 5 . . Failed 16 | . 13 . 3 . . Catastrophic 1 | . 1 . . . . Database Lockouts . | . . . . . . Manual 21 | . 16 . 4 . 1 Terminals 36 | . 30 . 6 . . Fabricators . | . . . . . . Repair Stations . | . . . . . . Recycling Units 1 | . 1 . . . . Scanalyzers 2 | . . . 2 . . Garrison Access . | . . . . . . Terminal Hacks 17 | . 14 1 2 . . Robot Analysis 7 | . 5 . 2 . . Prototype ID Bank 3 | . 3 . . . . Open Door 1 | . . 1 . . . Emergency Access Points 1 | . 1 . . . . Terminal Index 1 | . 1 . . . . Hauler Manifests 1 | . 1 . . . . Registered Components 1 | . 1 . . . . Zone Layout 2 | . 2 . . . . Fabricator Hacks . | . . . . . . Repair Station Hacks . | . . . . . . Recycling Unit Hacks . | . . . . . . Scanalyzer 2 | . . . 2 . . Insert Component 1 | . . . 1 . . Analyze 1 | . . . 1 . . Garrison Access Hacks . | . . . . . . Unauthorized Hacks 5 | . 4 . 1 . . Terminals 4 | . 3 . 1 . . Botnet 4 | . 3 . 1 . . Fabricators . | . . . . . . Repair Stations . | . . . . . . Recycling Units 1 | . 1 . . . . Tunnel 1 | . 1 . . . . Scanalyzers . | . . . . . . Garrison Access . | . . . . . . Data Cores Recovered 1 | . 1 . . . . Used . | . . . . . . Hacking Detections 7 | . 6 . 1 . . Full Trace Events 7 | . 6 . 1 . . Feedback Events . | . . . . . . Feedback Blocked . | . . . . . . Robot Schematics Acquired . | . . . . . . Robots Built . | . . . . . . Authchips . | . . . . . . Time . | . . . . . . Total Robot Build Rating . | . . . . . . Part Schematics Acquired 1 | . . . 1 . . Parts Built . | . . . . . . Authchips . | . . . . . . Time . | . . . . . . Total Part Build Rating . | . . . . . . Parts Repaired . | . . . . . . Time . | . . . . . . Parts Recycled . | . . . . . . Recycled Matter . | . . . . . . Retrieved Matter . | . . . . . . Retrieved Components . | . . . . . . Parts Scanalyzed 1 | . . . 1 . . Part Schematics Acquired 1 | . . . 1 . . Parts Damaged . | . . . . . . Bothacking | -11 -10 -10 -9 -9 -9 ------------ Run | Jun Mat Min Mat Min Exi Used RIF Installer . | . . . . . . Robots Hacked . | . . . . . . Non-combat . | . . . . . . Combat . | . . . . . . Robot Hacks Applied . | . . . . . . Relay Couplers Released . | . . . . . . Fabnet Peak Effective % . | . . . . . . Robots Rewired . | . . . . . . Allies Hacked . | . . . . . . Hacks Repelled . | . . . . . . Allies | -11 -10 -10 -9 -9 -9 -------- Run | Jun Mat Min Mat Min Exi Total Allies . | . . . . . . Largest Group . | . . . . . . Highest-Rated Group . | . . . . . . Highest-Rated Ally . | . . . . . . Total Orders . | . . . . . . Ally Attacks . | . . . . . . Total Damage . | . . . . . . Kills . | . . . . . . Allies Corrupted . | . . . . . . Allies Melted . | . . . . . . Intel | -11 -10 -10 -9 -9 -9 ------- Run | Jun Mat Min Mat Min Exi Robot Analysis Total 7 | . 5 . 2 . . Derelict Logs Recovered 2 | . . 1 . 1 . Drone Launches . | . . . . . . Drone Recoveries . | . . . . . . Exploration | -11 -10 -10 -9 -9 -9 ------------- Run | Jun Mat Min Mat Min Exi Turns Passed 3728 | 29 1256 693 1060 76 614 Spaces Moved 2132 | 19 846 514 427 61 265 Core 31 | 8 . . 23 . . Treads . | . . . . . . Legs 7 | 6 . . . . 1 Wheels 2094 | 5 846 514 404 61 264 Hover . | . . . . . . Flight . | . . . . . . Fastest Speed 100 | 100 100 100 100 115 115 Average Speed 106 | 127 100 100 119 115 116 Slowest Speed 350 | 150 100 100 350 115 190 Overloaded Moves . | . . . . . . Propulsion Burnouts . | . . . . . . Robots Hopped . | . . . . . . Cave-ins Triggered . | . . . . . . Exploration Rate (%) 50 | 2 97 89 42 19 52 Regions Visited 5 Branch Regions 3 Pre-discovered Areas 2 | . 1 . . 1 . Known Exits Taken . | . . . . . . Unknown Exits Taken 5 | 1 1 1 1 1 . Scrap Searched 3 | . . 2 . 1 . Spaces Dug . | . . . . . . Terrain Destroyed 623 | . 287 22 310 . 4 Melee . | . . . . . . Projectile 1 | . . . 1 . . AOE 622 | . 287 22 309 . 4 Terrain Rammed . | . . . . . . Walls Destroyed . | . . . . . . Machines Disabled . | . . . . . . Actions | -11 -10 -10 -9 -9 -9 --------- Run | Jun Mat Min Mat Min Exi Total 3135 | 23 1086 645 786 67 528 Wait 624 | . 103 99 230 7 185 Move 2127 | 18 845 513 426 60 265 Hop . | . . . . . . Pick Up 15 | 1 4 2 3 . 5 Fast Attach 19 | 2 5 . 6 . 6 Attach 6 | . 2 . 2 . 2 Detach 2 | . . . 1 . 1 Swap 8 | . 1 . 4 . 3 Drop 21 | 2 4 . 7 . 8 Fire 192 | . 85 24 77 . 6 Melee 32 | . . . . . 32 Ram 1 | . . . 1 . . Kick . | . . . . . . Crush . | . . . . . . Escape Stasis . | . . . . . . Rewire . | . . . . . . Trap . | . . . . . . Miscellaneous 88 | . 37 7 29 . 15 Route ------- -11/Junkyard -10/Materials (discovered 4 exits: *Mat x3 / *Min) -10/Mines -9/Materials (discovered 2 exits: [*Mat] / [*Min]) -9/Mines (discovered 2 exits: [*Mat] / *Exi) -9/Exiles History --------- Turn | Location | Event 1 | -11/Junkyard | Discovered new exit (range 3) 9 | -11/Junkyard | Upgraded with Utility slot (x2) 9 | -11/Junkyard | Upgraded with Weapon slot (x1) 30 | -11/Junkyard | Entered Materials 177 | -10/Materials | Discovered new exit (range 3) 256 | -10/Materials | Discovered new exit (range 12) 301 | -10/Materials | Build established: Mutant 557 | -10/Materials | Reached level 2 655 | -10/Materials | Discovered new exit (range 4) 747 | -10/Materials | Reached level 3 1009 | -10/Materials | Reached level 4 1219 | -10/Materials | Discovered new exit (range 14) 1286 | -10/Materials | Upgraded with Weapon slot (x1) 1286 | -10/Materials | Entered Mines 1294 | -10/Mines | Reached level 5 1318 | -10/Mines | Upgraded with Weapon slot (x1) 1329 | -10/Mines | Discovered new exit (range 7) 1598 | -10/Mines | Found a damaged Exp. Sensor Array with a note attached 1600 | -10/Mines | Found Prototype Device 1676 | -10/Mines | Found the Drone Emporium 1680 | -10/Mines | Found Prototype Device 1979 | -10/Mines | Entered Materials 1981 | -9/Materials | Reached level 6 2036 | -9/Materials | Identified Exp. Sensor Array 2050 | -9/Materials | Identified Sensor Drone Bay 2080 | -9/Materials | Reached level 7 2254 | -9/Materials | Discovered new exit (range 10) 2255 | -9/Materials | Met 8R-AWN 2433 | -9/Materials | Reached level 8 2505 | -9/Materials | Build established: Gunner 2600 | -9/Materials | Discovered new exit (range 3) 2779 | -9/Materials | First assault squad dispatched 2856 | -9/Materials | Reached level 9 2960 | -9/Materials | Upgraded with Utility slot (x2) 3039 | -9/Materials | Entered Mines 3040 | -9/Mines | Learned location of Storage (-8) 3040 | -9/Mines | Followed 8R-AWN into the Mines 3061 | -9/Mines | Learned Materials terminal intel 3064 | -9/Mines | Discovered new exit (range 16) 3111 | -9/Mines | Discovered new exit (range 5) 3115 | -9/Mines | Entered Exiles 3143 | -9/Exiles | Welcomed by 8R-AWN 3163 | -9/Exiles | Met EX-HEX 3194 | -9/Exiles | Met EX-BIN 3210 | -9/Exiles | Aligned with FarCom system 3211 | -9/Exiles | Given EX-Vault access code 3237 | -9/Exiles | Opened EX-Vault 3244 | -9/Exiles | Attacked by the Exiles 3251 | -9/Exiles | Found Prototype Slashing Weapon 3251 | -9/Exiles | Identified Longsword +1 3254 | -9/Exiles | Found Prototype Energy Cannon 3258 | -9/Exiles | Found Prototype Leg 3260 | -9/Exiles | Identified Latent Energy Streamer 3262 | -9/Exiles | Found Prototype Leg 3313 | -9/Exiles | Destroyed 7 combat bots 3368 | -9/Exiles | Core integrity fell below 50% 3396 | -9/Exiles | Found Prototype Ballistic Gun 3398 | -9/Exiles | Found Prototype Ballistic Gun 3398 | -9/Exiles | Identified 8R-AWN's Boregun (x2) 3403 | -9/Exiles | Identified Potential Leg (x2) 3548 | -9/Exiles | Build established: Mutant 3679 | -9/Exiles | Destroyed 8R-AWN 3687 | -9/Exiles | Found Prototype Processor 3687 | -9/Exiles | Identified Exp. Targeting Computer 3724 | -9/Exiles | Core integrity fell below 20% 3729 | -9/Exiles | Destroyed by DAS Turret with DAS Cannon Last Messages --------------- 03459_ HT8SIKJYZ 9QN8JMI6%UDBI/08X#TMGKT3UDC 03532_ System corrupted: Energy discharge (-60). 03551_ System corrupted: Matter fused (-7). 03576_ System corrupted: Heat flow error (+136). 03637_ System corrupted: Matter fused (-6). 03679_ 8R-AWN destroyed. 03681_ Acquired 21 matter. 03683_ Acquired Prototype Device. 03683_ Identified Exp. Heat Sink. 03685_ Acquired 10 matter. 03687_ Acquired Prototype Processor. 03687_ Identified Exp. Targeting Computer. 03688_ Acquired 10 matter. 03691_ Dropped Lgt. Nuclear Core. 03691_ Acquired Rnf. Fission Core. 03702_ &JMDL&VFRKWF KR 03717_ Exp. Targeting Computer blasted off. 03721_ Latent Energy Streamer blasted off. 03725_ Acquired Latent Energy Streamer. 03729_ Com. Wheel destroyed. Map ----- +----------------------------------------------------+ | ?????????????????????#""""""?# ###########???? | | ??????????????????????#"###??# #?#"""""""#???? | | ?????????????????????????????# #?#"""""""#???? | | ?????????????????????????????# #?#"""""""#???? | | ????????????????????????????## ###"" """"#???? | | ????????????????????????????#" """"#???? | | ????????????????????????????#" """#???? | | ????????????????????????????#" """#???? | | ????????????????????????????#" """#???? | | ????????????????????????????#" """#???? | | ????????????????????????????#" """#???? | | ????????????????????????????## """"???? | | ?????????????????????????????# """#???? | | ?????????????????????????????#" "X" """"???? | | ?????????????????????????????#" """ #???? | | ?????????????????????????????#" """""""""#???? | | ???????????????"????????????##" ###########???? | | ???????????????# ??????????##"" #?????????????? | | ?????????????#?# ##??######"" #?????????????? | | ???????""#####X# #"###""""""" ##????????????? | | ??????? """""" " "" ##???######### | | ?????? ""%""" % " #####"""""""" | | ?????? " " " """ "" | | ?????? % "" " | | ?????? % % % " | | ?????? @ | | ??????? | | ???????#" | | ????????""" """""" | | ????????? ######""" | | ????????" ""##????#####""" | | ?????????" """##?????????##""" | | ????????? """##???????????#""""* | | ?????????? ""#???????????##"" % | | ?????????? #??###????####""""% | | ???????????? ## ####""" | | ????????????? """" | | ??????????????? | | ???????????????? | | ???????????????? % " | | ????????????????? " "" """ | | ????????????????? ""## ##""" " " ""#" | | ?????????????????? ""##?# ######""" """##"" | | ?????????????????? """"#???# #????###""""##### | | ?????????????????? "??????# #???????#####???? | | ??????????????????????????????! ???????????????? | | ?????????????????????????????#" ???????????????? | | ?????????????????????????????#" ???????????????? | | ??????????????????????????????!!""???????????????? | | ??????????????????????????????####???????????????? | +----------------------------------------------------+ Best States ------------- Heat Dissipation 87 Energy Generation 19 Energy Capacity 310 Matter Stores 300 Matter Capacity 300 Sight Range 16 Robot Scan Range 20 Terrain Scan Density 10 Evasion (%) 40 Targeting Accuracy 17 Offensive Hacking 10 Defensive Hacking 5 Item Schematics ----------------- Exp. Sensor Array | -9/Materials | Scanalyzed Robot Schematics ------------------ None Fabricated ------------ Nothing Alien Tech Used ----------------- None Achievements -------------- None Challenges ------------ None RPGLIKE | -11 -10 -10 -9 -9 -9 --------- Run | Jun Mat Min Mat Min Exi Levels Raised 8 | . 3 1 4 . . XP Earned 15792 | 3000 5389 1835 5155 244 169 XP Spent 14900 | 2550 4250 1100 7000 . . Upgrades 28 | 5 8 1 14 . . Utility Slot 4 | 2 . . 2 . . Weapon Slot 3 | 1 1 1 . . . Heat Dissipation 6 | . . . 6 . . Inventory Capacity 4 | 2 2 . . . . Ranged Accuracy 4 | . 2 . 2 . . Hack Attack % 2 | . 2 . . . . Hack Defense % 1 | . 1 . . . . TH Damage % 4 | . . . 4 . . Protomatter Created 773 | . 332 44 365 . 32 Integrity Restored 1784 | . 769 132 554 . 329 Core 1555 | . 667 132 427 . 329 Parts 229 | . 102 . 127 . . Protomatter Decayed 266 | . 72 . 183 . 11 Game ------ Seed AblativeImpactGenerator Manual? 1 Play Time 00:35:45 Cumulative 406.8 hours Start 2023.03.04 @ 05:57:47 End 2023.03.04 @ 06:29:05 Sessions 1 Manual Loads 0 Difficulty Rogue Special Mode Winter2019/RPGLIKE Game No. 469 Rogue 469 Adventurer 0 Explorer 0 Win Type - Total 0 Types 0/0/0/0/0/0/0/0/0 Lore% 53 Gallery% 76 Achievement% 62 Wizard Run 0 Options --------- ASCII 0 Keyboard 0 Movement Mouse Keybinds 0 Fullscreen 2 Font 24/Smallcaps Map View 76x50 Tactical HUD 1 Map Filters NONE Filters NONE Steam 1 RUN: 4ea82f6b-7d4b-4a02-b20f-4fd47459ce1c